Cogmind - Beta 13 @@@ ROGUE MODE // 2024.04.09 @ 15:03:58 Player: paintbox Result: Destroyed by D-53 Grenadier with Mini Grenade Launcher Performance ------------- Evolutions (0) 0 Regions Visited (2) 400 Robots Destroyed (21) 105 Value Destroyed (358) 358 Prototype IDs (0) 0 Alien Tech Used (0) 0 Bonus (0) 0 TOTAL SCORE: 863 Bonus ------- None Cogmind --------- Core Integrity 0/250 Matter 163/300 Energy 125/125 System Corruption 2% Temperature Cool (16) Movement Rolling (115) Ox1 Location -10/Mines Parts ------- > --- POWER (1) -------- Light Ion Engine > --- PROPULSION (2) --- Compact Wheel > --- UTILITY (2) ------ Medium Storage Unit Seismic Detector > --- WEAPON (2) ------- Light Cannon > --- INVENTORY (10) --- Improved Aluminum Leg Improved Aluminum Leg Improved Aluminum Leg Compact Wheel Signal Interpreter Targeting Computer Grenade Launcher Peak State ------------ > --- POWER ------------ Ion Engine > --- PROPULSION ------- Light Treads Compact Wheel > --- UTILITY ---------- Medium Storage Unit Medium Armor Plating > --- WEAPON ----------- Light Assault Rifle Rocket Launcher > --- INVENTORY -------- Improved Aluminum Leg Improved Aluminum Leg Improved Aluminum Leg Compact Wheel Signal Interpreter Targeting Computer Small Laser Light Cannon Grenade Launcher Flail [Rating: 10] Favorites ----------- Power Ion Engine Engine Ion Engine Propulsion Compact Wheel Treads Light Treads Leg Aluminum Leg Wheel Compact Wheel Utility Small Storage Unit Device Sensor Array Storage Small Storage Unit Protection Medium Armor Plating Weapon Light Assault Rifle Energy Gun Medium Laser Ballistic Gun Light Assault Rifle Ballistic Cannon Light Cannon Launcher Rocket Launcher Build | -11 -10 -10 ------- Run | Yrd Mat Min Slots Evolved . | . . . Power . | . . . Propulsion . | . . . Utility . | . . . Weapon . | . . . Parts Attached 34 | 3 27 4 Power 4 | . 3 1 Engine 4 | . 3 1 Core . | . . . Reactor . | . . . Propulsion 6 | 2 4 . Treads 4 | 1 3 . Leg . | . . . Wheel 2 | 1 1 . Hover . | . . . Flight . | . . . Utility 6 | . 5 1 Device 4 | . 3 1 Storage 1 | . 1 . Processor . | . . . Hackware . | . . . Protection 1 | . 1 . Artifact . | . . . Weapon 18 | 1 15 2 Energy Gun 1 | . 1 . Energy Cannon . | . . . Ballistic Gun 10 | 1 9 . Ballistic Cannon 3 | . 2 1 Launcher 4 | . 3 1 Special Weapon . | . . . Impact Weapon . | . . . Slashing Weapon . | . . . Piercing Weapon . | . . . Special Melee Weapon . | . . . Unidentified Prototypes . | . . . Parts Lost 10 | . 5 5 Power 2 | . 1 1 Propulsion 2 | . 1 1 Utility 2 | . 1 1 Weapon 4 | . 2 2 Highest Loss Streak 3 | . 2 3 To Critical Strikes . | . . . Average Slot Usage (%) 95 | . 93 99 Engine 14 | . 14 14 Treads 13 | . 13 14 Wheel 14 | . 14 14 Device 4 | . 6 1 Storage 14 | . 14 14 Protection 4 | . 1 12 Energy Gun 1 | . 2 . Ballistic Gun 17 | . 19 12 Ballistic Cannon 4 | . 5 2 Launcher 4 | . . 13 Naked Turns . | . . . Heaviest Build 27 | 14 26 27 Greatest Support 16 | 16 16 16 Greatest Overweight (x) 1 | . 1 1 Average Overweight (x) . | . . 1 Largest Inventory Capacity 10 | 8 10 10 Average Capacity 8 | 8 8 10 Most Carried 10 | 6 10 10 Average Carried 8 | 6 7 9 Final Capacity 10 | 8 10 10 Final Carried 10 | 6 10 7 Class Distribution -------------------- 100% | Mutant Dominant Class ---------------- Mutant | -10/Materials Mutant | -10/Mines Resources | -11 -10 -10 ----------- Run | Yrd Mat Min Matter Collected 751 | 230 482 39 Remotely . | . . . Salvage Created 394 | . 371 23 Parts 32 | . 23 9 Haulers Intercepted . | . . . Recyclers Shooed . | . . . Parts Field Recycled . | . . . Retrieved Matter . | . . . Parts Self-Destructed . | . . . Prevented . | . . . Kills | -11 -10 -10 ------- Run | Yrd Mat Min Combat Hostiles Destroyed 18 | . 12 6 Guns 7 | . 7 . Cannons 5 | . 5 . AOE 6 | . . 6 Classes Destroyed 8 | . 5 3 Worker 1 | . 1 . Builder 1 | . . 1 Tunneler 1 | . . 1 Recycler 1 | . 1 . Watcher 2 | . 2 . Swarmer 9 | . 6 3 Grunt 6 | . 6 . Assembled 3 | . . 3 Best Kill Streak 5 | . 5 5 Combat Bots Only 5 | . 5 3 Max Kills in Single Turn 3 | . 2 3 Gunslinging 1 | . 1 . Exploded 3 | . . 3 Melee . | . . . Uniques/NPCs Destroyed . | . . . Combat | -11 -10 -10 -------- Run | Yrd Mat Min Hostile Shots Fired 128 | . 102 26 Missed 38 | . 32 6 Damage Taken 1444 | . 806 638 Core 281 | . 130 151 Absorbed by Shields . | . . . Core Remaining (%) 100 | 100 . . Volleys Fired 67 | . 53 14 Largest 2 | . 2 2 Hottest 70 | . 70 68 Shots Fired 117 | . 97 20 Gun 74 | . 67 7 Cannon 30 | . 26 4 Launcher 13 | . 4 9 Special . | . . . Kinetic 95 | . 84 11 Thermal 9 | . 9 . Explosive 13 | . 4 9 Electromagnetic . | . . . Robot Hit Streak 11 | . 11 4 Robot Miss Streak 3 | . 3 3 Penetration Max . | . . . Secondary Targets 2 | . 2 . Max Gunslinging Chain 1 | . 1 . Shots Hit Robots 69 | . 60 9 Core Hits 44 | . 29 15 Critical Kills . | . . . Critical Parts Destroyed 2 | . 2 . Critical Strikes 4 | . 4 . Burn 1 | . 1 . Destroy 2 | . 2 . Blast 1 | . 1 . Melee Attacks . | . . . Impact . | . . . Slashing . | . . . Piercing . | . . . Sneak Attacks . | . . . Combat Hostiles . | . . . Follow-up Attacks . | . . . Damage Inflicted 1458 | . 818 640 Guns 495 | . 473 22 Cannons 339 | . 298 41 Explosions 624 | . 47 577 Melee . | . . . Ramming . | . . . Kinetic 758 | . 695 63 Thermal 76 | . 76 . Explosive 624 | . 47 577 Electromagnetic . | . . . Impact . | . . . Slashing . | . . . Piercing . | . . . Highest Corruption 2 | . 2 2 Average Corruption 2 | . 2 2 Corruption Purged . | . . . Corruption Blocked . | . . . Effects 15 | . 4 11 Message Errors 2 | . 2 . Matter Fused 3 | . . 3 Heat Flow Errors 1 | . . 1 Energy Discharges 3 | . 1 2 Parts Fused 1 | . . 1 Data Loss (minor) 4 | . 1 3 Data Loss (major) 1 | . . 1 Overload Shots . | . . . Overflow Damage 49 | . . 49 Projectiles . | . . . Explosions 49 | . . 49 Melee . | . . . Knockbacks 2 | . 2 . Impact . | . . . Kinetic 2 | . 2 . Secondary . | . . . Self-Inflicted Damage 181 | . . 181 Shots 5 | . . 5 Rammed . | . . . Targets Rammed . | . . . Kicked . | . . . Crushed . | . . . Highest Temperature 175 | . 132 175 Average Temperature 33 | . 32 36 Received Heat Transfer 300 | . 300 . Siege Activations . | . . . Robots Corrupted . | . . . Combat Hostiles . | . . . Parts Fried . | . . . Impact Corruptions . | . . . Robots Melted . | . . . Combat Hostiles . | . . . Parts Melted . | . . . Heat Transferred 296 | . 296 . Parts Sabotaged . | . . . Parts Stolen . | . . . Parts Stripped . | . . . Power Chain Reactions . | . . . Alert | -11 -10 -10 ------- Run | Yrd Mat Min Peak Influence 217 | . 217 139 Initial 7 | . . 7 Average 101 | . 100 105 Maximum Alert Level 1 | . 1 . Low Security (%) 89 | 100 84 100 Level 1 10 | . 15 . Level 2 . | . . . Level 3 . | . . . Level 4 . | . . . Level 5 . | . . . High Security . | . . . Max Security . | . . . Squads Dispatched 2 | . 2 . Investigation . | . . . Extermination . | . . . Reinforcement 2 | . 2 . Assault . | . . . Garrison . | . . . Intercept . | . . . Searches Triggered . | . . . Construction Impeded . | . . . Haulers Reinforced . | . . . Active Scanning Responses . | . . . Cargo Convoy Interrupts . | . . . Stealth | -11 -10 -10 --------- Run | Yrd Mat Min Distress Signals 3 | . 3 . Communications Jammed . | . . . Distress Signals . | . . . Times Spotted 40 | . 27 13 Peak Tracking Total 19 | . 3 19 Tactical Retreats 3 | . 2 1 Traps | -11 -10 -10 ------- Run | Yrd Mat Min Traps Triggered 4 | . 4 . Indirectly . | . . . Trap Hack Attempts . | . . . Triggered . | . . . Disarmed . | . . . Reprogrammed . | . . . Reused . | . . . Traps Extracted . | . . . Installed . | . . . Triggered . | . . . Machines | -11 -10 -10 ---------- Run | Yrd Mat Min Machines Disabled . | . . . Max in Single Turn . | . . . Machines Repaired . | . . . Machines Dismantled . | . . . Machines Sabotaged . | . . . Overloaded Fab Kills . | . . . Hacking | -11 -10 -10 --------- Run | Yrd Mat Min Machines Accessed 4 | . 4 . Terminals 2 | . 2 . Fabricators . | . . . Repair Stations . | . . . Recycling Units 2 | . 2 . Scanalyzers . | . . . Garrison Access . | . . . Total Hacks 11 | . 11 . Successful 5 | . 5 . Failed 6 | . 6 . Catastrophic . | . . . Database Lockouts . | . . . Manual 3 | . 3 . Terminals 6 | . 6 . Fabricators . | . . . Repair Stations . | . . . Recycling Units 5 | . 5 . Scanalyzers . | . . . Garrison Access . | . . . Terminal Hacks 2 | . 2 . Part Schematic 1 | . 1 . Locate Traps 1 | . 1 . Fabricator Hacks . | . . . Repair Station Hacks . | . . . Recycling Unit Hacks 2 | . 2 . Report Inventory 2 | . 2 . Scanalyzer . | . . . Garrison Access Hacks . | . . . Unauthorized Hacks 1 | . 1 . Terminals 1 | . 1 . Botnet 1 | . 1 . Fabricators . | . . . Repair Stations . | . . . Recycling Units . | . . . Scanalyzers . | . . . Garrison Access . | . . . Data Cores Recovered . | . . . Used . | . . . Hacking Detections 3 | . 3 . Full Trace Events . | . . . Feedback Events . | . . . Feedback Blocked . | . . . Robot Schematics Acquired . | . . . Robots Built . | . . . Authchips . | . . . Time . | . . . Total Robot Build Rating . | . . . Part Schematics Acquired 1 | . 1 . Parts Built . | . . . Authchips . | . . . Time . | . . . Total Part Build Rating . | . . . Parts Repaired . | . . . Time . | . . . Parts Recycled . | . . . Recycled Matter . | . . . Retrieved Matter . | . . . Retrieved Components . | . . . Parts Scanalyzed . | . . . Part Schematics Acquired . | . . . Parts Damaged . | . . . Bothacking | -11 -10 -10 ------------ Run | Yrd Mat Min Used RIF Installer . | . . . Robots Hacked . | . . . Non-combat . | . . . Combat . | . . . Robot Hacks Applied . | . . . Relay Couplers Released . | . . . Fabnet Peak Effective % . | . . . Robots Rewired . | . . . Allies Hacked . | . . . Hacks Repelled . | . . . Allies | -11 -10 -10 -------- Run | Yrd Mat Min Total Allies . | . . . Largest Group . | . . . Highest-Rated Group . | . . . Highest-Rated Ally . | . . . Total Orders . | . . . Ally Attacks . | . . . Total Damage . | . . . Kills . | . . . Allies Corrupted . | . . . Allies Melted . | . . . Intel | -11 -10 -10 ------- Run | Yrd Mat Min Robot Analysis Total . | . . . Derelict Logs Recovered . | . . . Drone Launches . | . . . Drone Recoveries . | . . . Exploration | -11 -10 -10 ------------- Run | Yrd Mat Min Turns Passed 1318 | 12 881 425 Spaces Moved 913 | 8 591 314 Core . | . . . Treads . | . . . Legs . | . . . Wheels 913 | 8 591 314 Hover . | . . . Flight . | . . . Fastest Speed 100 | 100 100 115 Average Speed 107 | 100 103 115 Slowest Speed 115 | 100 115 115 Overloaded Moves . | . . . Propulsion Burnouts . | . . . Robots Hopped . | . . . Cave-ins Triggered . | . . . Exploration Rate (%) 50 | 2 75 75 Regions Visited 2 Branch Regions 1 Pre-discovered Areas . | . . . Known Exits Taken . | . . . Unknown Exits Taken 2 | 1 1 . Scrap Searched 1 | . . 1 Spaces Dug . | . . . Terrain Destroyed 117 | . 30 87 Melee . | . . . Projectile . | . . . AOE 117 | . 30 87 Terrain Rammed . | . . . Walls Destroyed . | . . . Machines Disabled . | . . . Actions | -11 -10 -10 --------- Run | Yrd Mat Min Total 1135 | 10 764 361 Wait 83 | . 61 22 Move 911 | 7 590 314 Hop . | . . . Pick Up 21 | . 18 3 Fast Attach 12 | . 12 . Attach 7 | . 4 3 Detach . | . . . Swap 15 | 3 11 1 Drop 18 | . 15 3 Fire 67 | . 53 14 Melee . | . . . Ram . | . . . Kick . | . . . Crush . | . . . Escape Stasis . | . . . Rewire 1 | . . 1 Trap . | . . . Miscellaneous . | . . . Route ------- -11/Scrapyard -10/Materials (discovered 4 exits: [*Mat x2] / *Min x2) -10/Mines (discovered 2 exits: [*Mat x2]) History --------- Turn | Location | Event 6 | -11/Scrapyard | Discovered new exit (range 3) 13 | -11/Scrapyard | Entered Materials 41 | -10/Materials | Discovered new exit (range 13) 189 | -10/Materials | Discovered new exit (range 11) 312 | -10/Materials | Build established: Mutant 515 | -10/Materials | Discovered new exit (range 11) 754 | -10/Materials | Core integrity fell below 50% 774 | -10/Materials | Discovered new exit (range 4) 894 | -10/Materials | Entered Mines 901 | -10/Mines | Received a Rocket Launcher from a helpful Derelict 911 | -10/Mines | Discovered new exit (range 9) 939 | -10/Mines | Discovered new exit (range 10) 1240 | -10/Mines | Assembled infested the area 1293 | -10/Mines | Lost 3 parts (1p1u1w) 1307 | -10/Mines | Met 8R-AWN 1314 | -10/Mines | Core integrity fell below 20% 1319 | -10/Mines | Destroyed by D-53 Grenadier with Mini Grenade Launcher Last Messages --------------- 01262_ as-26872 destroyed. 01262_ Destroyed Asb. Hover Unit. 01262_ as-82540 destroyed. 01262_ Lgt. Assault Rifle destroyed. 01262_ Destroyed Lgt. Assault Rifle. 01262_ Med. Armor Plating destroyed. 01262_ Destroyed Med. Armor Plating. 01279_ System corrupted: Energy discharge (-39). 01284_ The unstable cave ceiling collapses. 8R-AWN: Hm, I'm not getting any readings that show these Assembled are different than what we have already... But you... you look interesting. Maybe they'll want to see you. Come along little bot, it's safer with us than out here, anyway. 01311_ The unstable cave ceiling collapses. 01312_ C-30 ARC bursts open, deploying its payload. 01312_ D-53 Grenadier unfolds itself. 01315_ Lgt. Treads destroyed. 01317_ The unstable cave ceiling collapses. 01319_ System corrupted: Component data lost. 01319_ Rocket Launcher destroyed. Map ----- +----------------------------------------------------+ | | | | | | | ?????????????????????????????????????????????????? | | ?????????????????????????????????????????????????? | | ?????????????????????????????????????????????????? | | ?????????????????????????????????????????????????? | | ?????????????????????????????????????????????????? | | ???########??????????????????????????????????????? | | #### #??????????????????????????????????????? | | """ ################################ ??? | | ### """ ??? | | #?# """ ??? | | #?# ###################### ###### #???? | | #?# #????????????######### #???????????????? | | #?# #????????????# # # #???????????????? | | #?#T######????????????# ## %#???????????????? | | #####????????????###### # ##### #??????? | | ##??????????????# #?????? | | #####??????????# #### # ###### """ #????? | | ##????##??## #?# #?????????????????? | | #?? # # ### #?????????????????? | | # # ##?????????????????? | | ## % #??????????????????? | | ##?# d ##?????????????????? | | ##?? d @ #?????????????????? | | #??# ## #?????????????????? | | #???##### ###???????????????? | | #???????#### # #???????????????? | | #??????????## ## #### #???????????????? | | #???????????## #######???# #???###?????????? | | ##????????????## #?????????##??## ##????????? | | #??????????????## #????????????# ##???????? | | ????????????????## #????????????## ##??????? | | ?????????????????### ##?????????????# #??????? | | ???????????????????####?????####????## #??????? | | ??????????????????????????### #??## ##??????? | | ?????????????????????????## ### #???????? | | ##???????????????????????# #???????? | | ##??????????????????????# #???????? | | #??????????????????????# #???????? | | ##?????????????????????###### ##??????? | | #??????????????????????????## #??????? | | #???????????????????????????## #??????? | | ##????????????????????????????# #??????? | | ##????????????????????????????# ####??????? | | ##???????????? ??????????????## *##????????? | | ##??????????? ???????????????# #????????? | | ###????????? ??????????????# #????????? | | ##???????? ##????????????# #???#????? | +----------------------------------------------------+ Best States ------------- Heat Dissipation 25 Energy Generation 10 Energy Capacity 250 Matter Stores 300 Matter Capacity 300 Sight Range 16 Robot Scan Range 14 Terrain Scan Range 14 Terrain Scan Density 10 Armor Coverage 225 Evasion (%) 40 Item Schematics ----------------- Hcp. Storage Unit | -10/Materials | Hacked Robot Schematics ------------------ None Fabricated ------------ Nothing Alien Tech Used ----------------- None Achievements -------------- None Challenges ------------ None Game ------ Seed CobblerHardenedMace Manual? 0 Play Time 00:46:25 Cumulative 35.4 hours Start 2024.04.09 @ 14:06:49 End 2024.04.09 @ 15:03:58 Sessions 1 Manual Loads 0 Difficulty Rogue Special Mode None Game No. 11 Rogue 11 Adventurer 0 Explorer 0 Win Type - Total 0 Types 0/0/0/0/0/0/0/0/0 Lore% 18 Gallery% 19 Achievement% 16 Wizard Run 0 Options --------- Layout 0 ASCII 0 Keyboard 1 Movement Vi Keybinds 0 Fullscreen 0 Font 18/VGA_Max Map View 110x65 Zoom Use 0% Tactical HUD 1 Map Filters NONE Filters NONE Steam 0 RUN: 1324e87f-0152-4d06-a1d1-b368806103f1